[Event "Early-Titled-Tuesday-Blitz-January-30-2024"]
[Site "Chess.com"]
[Date "2024.01.30"]
[Round "9"]
[White "AlexPapasimakopoulos"]
[Black "h4parah5"]
[Result "0-1"]
[WhiteElo "2764"]
[BlackElo "2906"]
[TimeControl "180+1"]
[EndTime "9:49:25 PST"]
[Termination "h4parah5 won by checkmate"]

1. d4 {[%clk 0:02:52.6]} 1... d5 {[%clk 0:02:58.9]} 2. c4 {[%clk 0:02:52.2]}
2... e6 {[%clk 0:02:59.6]} 3. Nc3 {[%clk 0:02:51.8]} 3... Nf6 {[%clk 0:02:59.4]}
4. cxd5 {[%clk 0:02:51.8]} 4... exd5 {[%clk 0:03:00.3]} 5. Bg5 {[%clk
0:02:51.5]} 5... c6 {[%clk 0:02:59.4]} 6. e3 {[%clk 0:02:51.8]} 6... h6 {[%clk
0:02:57.9]} 7. Bh4 {[%clk 0:02:50.7]} 7... Be6 {[%clk 0:02:57.6]} 8. Nf3 {[%clk
0:02:49]} 8... Nbd7 {[%clk 0:02:56.5]} 9. Bd3 {[%clk 0:02:49.5]} 9... g5 {[%clk
0:02:55.4]} 10. Bg3 {[%clk 0:02:49.3]} 10... Nh5 {[%clk 0:02:55.9]} 11. Qc2
{[%clk 0:02:47.2]} 11... Nxg3 {[%clk 0:02:55]} 12. hxg3 {[%clk 0:02:48.1]} 12...
Qf6 {[%clk 0:02:43.4]} 13. O-O {[%clk 0:02:24.1]} 13... O-O-O {[%clk 0:02:32]}
14. e4 {[%clk 0:02:24.1]} 14... dxe4 {[%clk 0:02:20]} 15. Nxe4 {[%clk
0:02:11.1]} 15... Qg7 {[%clk 0:02:19.6]} 16. b4 {[%clk 0:02:04.9]} 16... g4
{[%clk 0:02:15.1]} 17. b5 {[%clk 0:01:42.5]} 17... gxf3 {[%clk 0:01:42.6]} 18.
bxc6 {[%clk 0:01:42.1]} 18... Qxd4 {[%clk 0:01:41.8]} 19. cxd7+ {[%clk
0:01:29.6]} 19... Kb8 {[%clk 0:01:40.5]} 20. Rac1 {[%clk 0:01:17.8]} 20... Qxd7
{[%clk 0:01:35.1]} 21. Bb5 {[%clk 0:01:13]} 21... Qe7 {[%clk 0:01:31.9]} 22.
gxf3 {[%clk 0:01:09.9]} 22... h5 {[%clk 0:01:28.3]} 23. Bc4 {[%clk 0:00:45.1]}
23... Bh6 {[%clk 0:01:20.2]} 24. f4 {[%clk 0:00:39.4]} 24... Rc8 {[%clk
0:01:15.8]} 25. Qb3 {[%clk 0:00:37.7]} 25... Rxc4 {[%clk 0:01:12]} 26. Rxc4
{[%clk 0:00:38.6]} 26... h4 {[%clk 0:01:07.4]} 27. Nc5 {[%clk 0:00:19.1]} 27...
Bxc4 {[%clk 0:01:02.4]} 28. Qxc4 {[%clk 0:00:20]} 28... hxg3 {[%clk 0:01:00.4]}
29. fxg3 {[%clk 0:00:19.4]} 29... Bg7 {[%clk 0:00:49.5]} 30. Kg2 {[%clk
0:00:14.5]} 30... Rh6 {[%clk 0:00:33.6]} 31. Ne4 {[%clk 0:00:08.8]} 31... Rc6
{[%clk 0:00:32.5]} 32. Qd3 {[%clk 0:00:08.6]} 32... a6 {[%clk 0:00:20.4]} 33.
Rd1 {[%clk 0:00:08.1]} 33... Qe6 {[%clk 0:00:19]} 34. a4 {[%clk 0:00:06.2]}
34... Qa2+ {[%clk 0:00:17.9]} 35. Rd2 {[%clk 0:00:06.1]} 35... Qxa4 {[%clk
0:00:18.4]} 36. Nd6 {[%clk 0:00:05.2]} 36... Rc3 {[%clk 0:00:13.5]} 37. Qd5
{[%clk 0:00:04.5]} 37... Qc6 {[%clk 0:00:14]} 38. Qxc6 {[%clk 0:00:04]} 38...
Rxc6 {[%clk 0:00:13.1]} 39. Nxf7 {[%clk 0:00:04.7]} 39... a5 {[%clk 0:00:13.7]}
40. Ra2 {[%clk 0:00:03.9]} 40... Ra6 {[%clk 0:00:13.2]} 41. Kf3 {[%clk
0:00:02.8]} 41... b5 {[%clk 0:00:13.4]} 42. g4 {[%clk 0:00:02.7]} 42... Kc7
{[%clk 0:00:14]} 43. f5 {[%clk 0:00:03.1]} 43... b4 {[%clk 0:00:14.6]} 44. g5
{[%clk 0:00:03.5]} 44... b3 {[%clk 0:00:15.1]} 45. Ra3 {[%clk 0:00:01.8]} 45...
a4 {[%clk 0:00:14.7]} 46. f6 {[%clk 0:00:01.7]} 46... Bf8 {[%clk 0:00:15]} 47.
Ra1 {[%clk 0:00:01.6]} 47... b2 {[%clk 0:00:15.4]} 48. Rb1 {[%clk 0:00:02]}
48... a3 {[%clk 0:00:16]} 49. g6 {[%clk 0:00:02.7]} 49... Rxf6+ {[%clk
0:00:15.9]} 50. Ke2 {[%clk 0:00:03.2]} 50... Rxg6 {[%clk 0:00:16.4]} 51. Ne5
{[%clk 0:00:03.2]} 51... Re6 {[%clk 0:00:16.1]} 52. Rxb2 {[%clk 0:00:03.6]}
52... axb2 {[%clk 0:00:15.7]} 53. Kd1 {[%clk 0:00:04.3]} 53... Rxe5 {[%clk
0:00:16.3]} 54. Kc2 {[%clk 0:00:04.5]} 54... Rb5 {[%clk 0:00:17]} 55. Kb1 {[%clk
0:00:05]} 55... Kb6 {[%clk 0:00:17.6]} 56. Kc2 {[%clk 0:00:05.8]} 56... b1=Q+
{[%clk 0:00:17.8]} 57. Kc3 {[%clk 0:00:06.7]} 57... Bg7+ {[%clk 0:00:17.2]} 58.
Kc4 {[%clk 0:00:07.6]} 58... Qb3# {[%clk 0:00:17.2]} 0-1

[Event "Early-Titled-Tuesday-Blitz-January-30-2024"]
[Site "Chess.com"]
[Date "2024.01.30"]
[Round "9"]
[White "Kildepiotr"]
[Black "DmitriiZakurdaev"]
[Result "1-0"]
[WhiteElo "2683"]
[BlackElo "2470"]
[TimeControl "180+1"]
[EndTime "9:49:25 PST"]
[Termination "Kildepiotr won on time"]

1. Nf3 {[%clk 0:02:55.2]} 1... d5 {[%clk 0:02:59.6]} 2. g3 {[%clk 0:02:55.7]}
2... Nf6 {[%clk 0:02:59.5]} 3. Bg2 {[%clk 0:02:56.2]} 3... e6 {[%clk 0:03:00]}
4. O-O {[%clk 0:02:56.5]} 4... Be7 {[%clk 0:03:00.6]} 5. d3 {[%clk 0:02:57.1]}
5... O-O {[%clk 0:03:01.2]} 6. Nbd2 {[%clk 0:02:57.6]} 6... c5 {[%clk
0:03:01.8]} 7. e4 {[%clk 0:02:58]} 7... Nc6 {[%clk 0:03:02.4]} 8. Re1 {[%clk
0:02:58.5]} 8... b5 {[%clk 0:02:59.7]} 9. e5 {[%clk 0:02:56.8]} 9... Nd7 {[%clk
0:03:00.3]} 10. Nf1 {[%clk 0:02:57]} 10... a5 {[%clk 0:03:00.6]} 11. h4 {[%clk
0:02:54.8]} 11... Ba6 {[%clk 0:03:01]} 12. Bf4 {[%clk 0:02:52.3]} 12... Qb6
{[%clk 0:02:56.1]} 13. h5 {[%clk 0:02:43.4]} 13... h6 {[%clk 0:02:55.8]} 14. g4
{[%clk 0:02:43.5]} 14... Nd4 {[%clk 0:02:50.3]} 15. Nxd4 {[%clk 0:02:42.9]}
15... cxd4 {[%clk 0:02:51.2]} 16. Re2 {[%clk 0:02:30]} 16... Rfc8 {[%clk
0:02:44.1]} 17. Nh2 {[%clk 0:02:28.7]} 17... Nf8 {[%clk 0:02:38.8]} 18. Nf3
{[%clk 0:02:25.5]} 18... Nh7 {[%clk 0:02:39]} 19. Qd2 {[%clk 0:02:21.5]} 19...
a4 {[%clk 0:02:20.1]} 20. g5 {[%clk 0:02:16.2]} 20... hxg5 {[%clk 0:02:19.6]}
21. Nxg5 {[%clk 0:02:07.4]} 21... Nxg5 {[%clk 0:02:05]} 22. Bxg5 {[%clk
0:02:08.3]} 22... Bf8 {[%clk 0:01:39.8]} 23. h6 {[%clk 0:02:06]} 23... g6 {[%clk
0:01:35.8]} 24. Qf4 {[%clk 0:02:05.4]} 24... Ra7 {[%clk 0:01:22.8]} 25. Bf3
{[%clk 0:01:37.3]} 25... Kh7 {[%clk 0:01:20.7]} 26. Kg2 {[%clk 0:01:36.7]} 26...
a3 {[%clk 0:01:18.6]} 27. b3 {[%clk 0:01:36.7]} 27... Rc6 {[%clk 0:00:53.9]} 28.
Rh1 {[%clk 0:01:33.3]} 28... Qc7 {[%clk 0:00:48.7]} 29. Qxd4 {[%clk 0:01:24.2]}
29... Rb7 {[%clk 0:00:19.8]} 30. Qf4 {[%clk 0:01:04.9]} 30... Qc8 {[%clk
0:00:10.3]} 31. c4 {[%clk 0:00:54.6]} 31... bxc4 {[%clk 0:00:09.9]} 32. dxc4
{[%clk 0:00:54.9]} 32... Rd7 {[%clk 0:00:05]} 33. Rd2 {[%clk 0:00:50.6]} 33...
Rcc7 {[%clk 0:00:02.9]} 34. cxd5 {[%clk 0:00:49.2]} 34... exd5 {[%clk
0:00:03.8]} 35. Rxd5 {[%clk 0:00:42.1]} 35... Rxd5 {[%clk 0:00:03.5]} 36. Bxd5
{[%clk 0:00:43]} 36... Qd7 {[%clk 0:00:03.7]} 37. Be4 {[%clk 0:00:34.2]} 37...
Bb7 {[%clk 0:00:04.1]} 38. Bxb7 {[%clk 0:00:33.3]} 38... Rxb7 {[%clk 0:00:05]}
39. Qe4 {[%clk 0:00:29.2]} 39... Rc7 {[%clk 0:00:04.5]} 40. Rc1 {[%clk
0:00:26.9]} 40... Rxc1 {[%clk 0:00:04.1]} 41. Bxc1 {[%clk 0:00:27.8]} 41... Qe6
{[%clk 0:00:03.6]} 42. Be3 {[%clk 0:00:25.6]} 42... Bd6 {[%clk 0:00:02.4]} 43.
f4 {[%clk 0:00:24.6]} 43... Bf8 {[%clk 0:00:02.1]} 44. Kg3 {[%clk 0:00:22]}
44... Bxh6 {[%clk 0:00:01.5]} 45. Qc4 {[%clk 0:00:22.3]} 45... Qf5 {[%clk
0:00:01.5]} 46. b4 {[%clk 0:00:20.3]} 46... Bg7 {[%clk 0:00:01.7]} 47. b5 {[%clk
0:00:20.3]} 47... Qb1 {[%clk 0:00:02.1]} 48. b6 {[%clk 0:00:18.3]} 48... Bf8
{[%clk 0:00:02]} 49. Qxf7+ {[%clk 0:00:16.8]} 49... Bg7 {[%clk 0:00:02.2]} 50.
b7 {[%clk 0:00:10.7]} 50... Qe1+ {[%clk 0:00:03.1]} 51. Bf2 {[%clk 0:00:11.2]}
51... Qc3+ {[%clk 0:00:02.9]} 52. Kg4 {[%clk 0:00:10.5]} 1-0

[Event "Early-Titled-Tuesday-Blitz-January-30-2024"]
[Site "Chess.com"]
[Date "2024.01.30"]
[Round "9"]
[White "Byniolus"]
[Black "gahryman"]
[Result "1-0"]
[WhiteElo "2840"]
[BlackElo "2667"]
[TimeControl "180+1"]
[EndTime "9:49:27 PST"]
[Termination "Byniolus won on time"]

1. d4 {[%clk 0:03:00.9]} 1... Nf6 {[%clk 0:02:42]} 2. Nf3 {[%clk 0:03:01]} 2...
d5 {[%clk 0:02:41.2]} 3. Bf4 {[%clk 0:03:01.2]} 3... c5 {[%clk 0:02:36.4]} 4. c3
{[%clk 0:03:01.6]} 4... Qb6 {[%clk 0:02:34]} 5. Qb3 {[%clk 0:03:01.3]} 5... c4
{[%clk 0:02:33.1]} 6. Qc2 {[%clk 0:03:01.6]} 6... Nc6 {[%clk 0:02:29.6]} 7. Nbd2
{[%clk 0:03:01.8]} 7... Bg4 {[%clk 0:02:24.5]} 8. e3 {[%clk 0:03:01.5]} 8... e6
{[%clk 0:02:23.5]} 9. b3 {[%clk 0:02:56.7]} 9... cxb3 {[%clk 0:02:20.2]} 10.
axb3 {[%clk 0:02:57.6]} 10... Rc8 {[%clk 0:02:20.3]} 11. Qb2 {[%clk 0:02:56.3]}
11... Bf5 {[%clk 0:02:12.2]} 12. Be2 {[%clk 0:02:46.8]} 12... Be7 {[%clk
0:02:10.3]} 13. h3 {[%clk 0:02:44.7]} 13... h6 {[%clk 0:02:09.9]} 14. O-O {[%clk
0:02:44.2]} 14... O-O {[%clk 0:02:09.9]} 15. b4 {[%clk 0:02:39.9]} 15... Ne4
{[%clk 0:01:59.3]} 16. Rfc1 {[%clk 0:02:23.3]} 16... a6 {[%clk 0:01:49.1]} 17.
Nb3 {[%clk 0:02:19.6]} 17... Bf6 {[%clk 0:01:42.7]} 18. Qa3 {[%clk 0:02:07.3]}
18... Na7 {[%clk 0:01:30.1]} 19. Nc5 {[%clk 0:02:05.3]} 19... Nb5 {[%clk
0:01:28.8]} 20. Qb2 {[%clk 0:01:59.2]} 20... Nbd6 {[%clk 0:01:21.4]} 21. Nd7
{[%clk 0:01:53.6]} 21... Qd8 {[%clk 0:01:15.5]} 22. Nxf8 {[%clk 0:01:53.7]}
22... Qxf8 {[%clk 0:01:15.2]} 23. Ne5 {[%clk 0:01:45.8]} 23... Qd8 {[%clk
0:00:49]} 24. f3 {[%clk 0:01:18.4]} 24... Ng5 {[%clk 0:00:48.5]} 25. b5 {[%clk
0:01:07.3]} 25... axb5 {[%clk 0:00:45.8]} 26. Bxb5 {[%clk 0:01:08.2]} 26... Bxh3
{[%clk 0:00:25.5]} 27. gxh3 {[%clk 0:00:47.4]} 27... Nxh3+ {[%clk 0:00:26.4]}
28. Kf1 {[%clk 0:00:25.9]} 28... Bxe5 {[%clk 0:00:14.2]} 29. dxe5 {[%clk
0:00:16.2]} 29... Nf5 {[%clk 0:00:14.5]} 30. Bd3 {[%clk 0:00:08.1]} 30... Nxf4
{[%clk 0:00:10.5]} 31. exf4 {[%clk 0:00:09]} 31... Ng3+ {[%clk 0:00:10.1]} 32.
Kf2 {[%clk 0:00:03]} 32... Qh4 {[%clk 0:00:11]} 33. Ke3 {[%clk 0:00:03.3]} 33...
g5 {[%clk 0:00:10.3]} 34. Kd2 {[%clk 0:00:03.1]} 34... Qxf4+ {[%clk 0:00:10.2]}
35. Kc2 {[%clk 0:00:04]} 35... d4 {[%clk 0:00:08.8]} 36. c4 {[%clk 0:00:03.8]}
36... Nf5 {[%clk 0:00:09]} 37. Qb3 {[%clk 0:00:03.7]} 37... Ne3+ {[%clk
0:00:08.9]} 38. Kb2 {[%clk 0:00:04.6]} 38... b5 {[%clk 0:00:09.3]} 39. cxb5
{[%clk 0:00:04.1]} 39... Rb8 {[%clk 0:00:09.4]} 40. b6 {[%clk 0:00:04.1]} 40...
Qxe5 {[%clk 0:00:09.6]} 41. b7 {[%clk 0:00:04.7]} 41... Kg7 {[%clk 0:00:08.4]}
42. Ra8 {[%clk 0:00:03.9]} 42... Nd5 {[%clk 0:00:08.4]} 43. Rxb8 {[%clk
0:00:03.5]} 43... Qxb8 {[%clk 0:00:08.5]} 44. Rc8 {[%clk 0:00:03.8]} 44... Qh2+
{[%clk 0:00:08.7]} 45. Qc2 {[%clk 0:00:03.8]} 45... Qg1 {[%clk 0:00:06.4]} 46.
b8=Q {[%clk 0:00:03.8]} 46... Ne3 {[%clk 0:00:06.1]} 47. Qe5+ {[%clk 0:00:03.6]}
47... f6 {[%clk 0:00:06.6]} 48. Qxd4 {[%clk 0:00:03.6]} 48... Nxc2 {[%clk
0:00:05.9]} 49. Qxg1 {[%clk 0:00:03.6]} 1-0

[Event "Early-Titled-Tuesday-Blitz-January-30-2024"]
[Site "Chess.com"]
[Date "2024.01.30"]
[Round "9"]
[White "Yushko_Olga"]
[Black "eightbyeightchess"]
[Result "1-0"]
[WhiteElo "2176"]
[BlackElo "2389"]
[TimeControl "180+1"]
[EndTime "9:49:29 PST"]
[Termination "Yushko_Olga won by resignation"]

1. d4 {[%clk 0:02:59.9]} 1... d5 {[%clk 0:02:55.5]} 2. c4 {[%clk 0:03:00.4]}
2... c6 {[%clk 0:02:49.8]} 3. cxd5 {[%clk 0:03:00.1]} 3... cxd5 {[%clk
0:02:50.3]} 4. Nc3 {[%clk 0:03:00.9]} 4... Nf6 {[%clk 0:02:49.1]} 5. Nf3 {[%clk
0:03:00.9]} 5... Nc6 {[%clk 0:02:47.6]} 6. Bf4 {[%clk 0:03:00.2]} 6... a6 {[%clk
0:02:46.5]} 7. e3 {[%clk 0:03:00.6]} 7... Bf5 {[%clk 0:02:46.4]} 8. Bd3 {[%clk
0:03:00.4]} 8... Bg6 {[%clk 0:02:46.1]} 9. O-O {[%clk 0:03:00.4]} 9... e6 {[%clk
0:02:46.2]} 10. Rc1 {[%clk 0:03:00.5]} 10... Bd6 {[%clk 0:02:46.6]} 11. Bg5
{[%clk 0:03:00.2]} 11... O-O {[%clk 0:02:46.7]} 12. Re1 {[%clk 0:02:53.2]} 12...
Rc8 {[%clk 0:02:45.8]} 13. h3 {[%clk 0:02:44.8]} 13... b5 {[%clk 0:02:45.6]} 14.
a3 {[%clk 0:02:43.6]} 14... Bh5 {[%clk 0:02:42.8]} 15. g4 {[%clk 0:02:30.9]}
15... Bg6 {[%clk 0:02:35.7]} 16. e4 {[%clk 0:02:30.7]} 16... dxe4 {[%clk
0:02:29.4]} 17. Nxe4 {[%clk 0:02:27.7]} 17... Be7 {[%clk 0:02:29.5]} 18. Nxf6+
{[%clk 0:02:14.6]} 18... Bxf6 {[%clk 0:02:30.4]} 19. Bxf6 {[%clk 0:02:14.6]}
19... Qxf6 {[%clk 0:02:31.3]} 20. Ne5 {[%clk 0:01:57.2]} 20... Nxe5 {[%clk
0:02:00.1]} 21. dxe5 {[%clk 0:01:56.4]} 21... Qf4 {[%clk 0:01:47.8]} 22. Bxg6
{[%clk 0:01:50.2]} 22... hxg6 {[%clk 0:01:48.7]} 23. Kg2 {[%clk 0:01:29.3]}
23... Rcd8 {[%clk 0:01:23.6]} 24. Qf3 {[%clk 0:01:21]} 24... Qxf3+ {[%clk
0:01:12.3]} 25. Kxf3 {[%clk 0:01:21.9]} 25... Rd2 {[%clk 0:01:12.6]} 26. Re2
{[%clk 0:01:22.6]} 26... Rfd8 {[%clk 0:01:12.6]} 27. Rc3 {[%clk 0:01:16.8]}
27... R8d5 {[%clk 0:00:52.5]} 28. Rxd2 {[%clk 0:01:14.2]} 28... Rxd2 {[%clk
0:00:53.4]} 29. b4 {[%clk 0:01:14.5]} 29... Ra2 {[%clk 0:00:49.7]} 30. Ke3
{[%clk 0:01:12]} 30... g5 {[%clk 0:00:50]} 31. Rc8+ {[%clk 0:00:56.9]} 31... Kh7
{[%clk 0:00:49.9]} 32. Rc3 {[%clk 0:00:56.9]} 32... Kg6 {[%clk 0:00:49.9]} 33.
f4 {[%clk 0:00:51]} 33... f5 {[%clk 0:00:39.7]} 34. exf6 {[%clk 0:00:50.2]}
34... Kxf6 {[%clk 0:00:34.7]} 35. Ke4 {[%clk 0:00:45.7]} 35... Re2+ {[%clk
0:00:27.5]} 36. Kf3 {[%clk 0:00:45.5]} 36... Rh2 {[%clk 0:00:25.2]} 37. Kg3
{[%clk 0:00:44.9]} 37... Ra2 {[%clk 0:00:24.6]} 38. Re3 {[%clk 0:00:36.6]} 38...
gxf4+ {[%clk 0:00:17.4]} 39. Kxf4 {[%clk 0:00:36.7]} 39... e5+ {[%clk
0:00:17.6]} 40. Rxe5 {[%clk 0:00:32.5]} 40... Rf2+ {[%clk 0:00:15]} 41. Ke3
{[%clk 0:00:30.4]} 41... Ra2 {[%clk 0:00:10.6]} 42. Rf5+ {[%clk 0:00:30]} 42...
Kg6 {[%clk 0:00:09.3]} 43. h4 {[%clk 0:00:29.2]} 43... Rxa3+ {[%clk 0:00:09.5]}
44. Kd4 {[%clk 0:00:29.1]} 44... Rg3 {[%clk 0:00:06.3]} 45. Rf4 {[%clk
0:00:28.8]} 45... Rh3 {[%clk 0:00:06.5]} 46. Kc5 {[%clk 0:00:27]} 46... Rxh4
{[%clk 0:00:06.3]} 47. Kb6 {[%clk 0:00:27.5]} 47... Kg5 {[%clk 0:00:06.2]} 48.
Rf7 {[%clk 0:00:25.7]} 48... Kh6 {[%clk 0:00:05.8]} 49. Rf4 {[%clk 0:00:25.5]}
49... g5 {[%clk 0:00:03.7]} 50. Re4 {[%clk 0:00:24.2]} 50... Kg6 {[%clk
0:00:02.3]} 51. Kxa6 {[%clk 0:00:24.6]} 51... Kf6 {[%clk 0:00:03.2]} 52. Kxb5
{[%clk 0:00:24.4]} 52... Rh1 {[%clk 0:00:03.5]} 53. Kc5 {[%clk 0:00:22.8]} 53...
Rh8 {[%clk 0:00:04.1]} 54. b5 {[%clk 0:00:23]} 54... Rc8+ {[%clk 0:00:04.7]} 55.
Kd5 {[%clk 0:00:22.7]} 55... Re8 {[%clk 0:00:05.4]} 56. Rxe8 {[%clk 0:00:22.5]}
1-0

[Event "Early-Titled-Tuesday-Blitz-January-30-2024"]
[Site "Chess.com"]
[Date "2024.01.30"]
[Round "9"]
[White "Ducke13"]
[Black "DvaHrasta"]
[Result "0-1"]
[WhiteElo "2311"]
[BlackElo "2546"]
[TimeControl "180+1"]
[EndTime "9:49:30 PST"]
[Termination "DvaHrasta won by checkmate"]

1. d4 {[%clk 0:03:00.9]} 1... Nf6 {[%clk 0:02:58.8]} 2. g3 {[%clk 0:03:00.5]}
2... e6 {[%clk 0:02:58.6]} 3. Nf3 {[%clk 0:02:57.8]} 3... c5 {[%clk 0:02:57.4]}
4. Bg2 {[%clk 0:02:57.7]} 4... Nc6 {[%clk 0:02:56.3]} 5. O-O {[%clk 0:02:57.2]}
5... d5 {[%clk 0:02:56]} 6. c4 {[%clk 0:02:56.6]} 6... dxc4 {[%clk 0:02:54.9]}
7. dxc5 {[%clk 0:02:55.9]} 7... Qxd1 {[%clk 0:02:53.2]} 8. Rxd1 {[%clk
0:02:56.8]} 8... Bxc5 {[%clk 0:02:53.1]} 9. Nbd2 {[%clk 0:02:57.5]} 9... c3
{[%clk 0:02:53.2]} 10. bxc3 {[%clk 0:02:57]} 10... O-O {[%clk 0:02:51.4]} 11.
Nb3 {[%clk 0:02:57.5]} 11... Bb6 {[%clk 0:02:50.5]} 12. Ba3 {[%clk 0:02:55.4]}
12... Re8 {[%clk 0:02:46.5]} 13. Nfd4 {[%clk 0:02:38.6]} 13... Ne5 {[%clk
0:02:34.9]} 14. Nb5 {[%clk 0:02:30.4]} 14... Nc4 {[%clk 0:02:28.8]} 15. Bc5
{[%clk 0:02:26.2]} 15... a6 {[%clk 0:02:13.4]} 16. Nd6 {[%clk 0:01:22.2]} 16...
Nxd6 {[%clk 0:02:11.9]} 17. Bxb6 {[%clk 0:01:09.4]} 17... Nc4 {[%clk 0:02:06.4]}
18. Bc5 {[%clk 0:01:09.1]} 18... Nd5 {[%clk 0:02:02.2]} 19. Rac1 {[%clk
0:00:52.3]} 19... b5 {[%clk 0:01:54]} 20. e4 {[%clk 0:00:23.3]} 20... Nf6 {[%clk
0:01:37.5]} 21. e5 {[%clk 0:00:22]} 21... Nd5 {[%clk 0:01:37.4]} 22. Bd6 {[%clk
0:00:16.4]} 22... Bb7 {[%clk 0:01:30.2]} 23. Nc5 {[%clk 0:00:16.6]} 23... Bc6
{[%clk 0:01:30.1]} 24. Rd4 {[%clk 0:00:16.2]} 24... Red8 {[%clk 0:01:21]} 25.
Ne4 {[%clk 0:00:10]} 25... Rac8 {[%clk 0:01:11.5]} 26. f4 {[%clk 0:00:09.7]}
26... Ba8 {[%clk 0:01:07.4]} 27. Kf2 {[%clk 0:00:09.8]} 27... f5 {[%clk
0:01:02.9]} 28. Ng5 {[%clk 0:00:06.5]} 28... Nxd6 {[%clk 0:01:00]} 29. exd6
{[%clk 0:00:06.8]} 29... Rxd6 {[%clk 0:00:59.2]} 30. Re1 {[%clk 0:00:06.9]}
30... Rxc3 {[%clk 0:00:55.2]} 31. Nxe6 {[%clk 0:00:06.3]} 31... Rc2+ {[%clk
0:00:55.4]} 32. Kg1 {[%clk 0:00:02.7]} 32... Rxg2+ {[%clk 0:00:53.3]} 33. Kxg2
{[%clk 0:00:03.6]} 33... Nxf4+ {[%clk 0:00:53.1]} 34. Kf1 {[%clk 0:00:03.1]}
34... Rxe6 {[%clk 0:00:40.9]} 35. gxf4 {[%clk 0:00:02.2]} 35... Be4 {[%clk
0:00:37.5]} 36. Kf2 {[%clk 0:00:02.3]} 36... Rc6 {[%clk 0:00:36]} 37. Red1
{[%clk 0:00:02.1]} 37... h5 {[%clk 0:00:33.6]} 38. Rd6 {[%clk 0:00:02.1]} 38...
Rc3 {[%clk 0:00:31.9]} 39. R1d2 {[%clk 0:00:02.7]} 39... Ra3 {[%clk 0:00:30.4]}
40. h4 {[%clk 0:00:02]} 40... Kh7 {[%clk 0:00:28.9]} 41. Rd7 {[%clk 0:00:02.4]}
41... Rh3 {[%clk 0:00:28.3]} 42. Ra7 {[%clk 0:00:02.6]} 42... Rxh4 {[%clk
0:00:27.3]} 43. Rdd7 {[%clk 0:00:02.6]} 43... Rxf4+ {[%clk 0:00:25.8]} 44. Ke3
{[%clk 0:00:02.8]} 44... Rg4 {[%clk 0:00:25.7]} 45. Rxa6 {[%clk 0:00:03.3]}
45... h4 {[%clk 0:00:25.7]} 46. Ra8 {[%clk 0:00:02.7]} 46... h3 {[%clk
0:00:24.6]} 47. Rc8 {[%clk 0:00:03.3]} 47... h2 {[%clk 0:00:23.7]} 48. Rc1
{[%clk 0:00:03.8]} 48... Rg1 {[%clk 0:00:22.8]} 49. Rdd1 {[%clk 0:00:03.2]}
49... Rxd1 {[%clk 0:00:22.8]} 50. Rxd1 {[%clk 0:00:03.8]} 50... h1=Q {[%clk
0:00:22.6]} 51. Rxh1+ {[%clk 0:00:04.5]} 51... Bxh1 {[%clk 0:00:22.8]} 52. Kd4
{[%clk 0:00:05.2]} 52... g5 {[%clk 0:00:22.1]} 53. Kc5 {[%clk 0:00:05.8]} 53...
g4 {[%clk 0:00:22.6]} 54. Kxb5 {[%clk 0:00:06.5]} 54... g3 {[%clk 0:00:23.2]}
55. Kc4 {[%clk 0:00:07]} 55... g2 {[%clk 0:00:23.5]} 56. Kd4 {[%clk 0:00:07.7]}
56... g1=Q+ {[%clk 0:00:23.6]} 57. Ke5 {[%clk 0:00:08.6]} 57... Qe3+ {[%clk
0:00:23.7]} 58. Kf6 {[%clk 0:00:09.5]} 58... f4 {[%clk 0:00:23.4]} 59. Kf5
{[%clk 0:00:10.4]} 59... Be4+ {[%clk 0:00:22.5]} 60. Ke5 {[%clk 0:00:10.2]}
60... Bb1+ {[%clk 0:00:21.8]} 61. Kf6 {[%clk 0:00:09.5]} 61... f3 {[%clk
0:00:22.2]} 62. a4 {[%clk 0:00:09.5]} 62... f2 {[%clk 0:00:22.5]} 63. a5 {[%clk
0:00:10.4]} 63... f1=Q# {[%clk 0:00:22.3]} 0-1